fUST/lending_fUST_20250526
["ID","MTS","AMOUNT","RATE_DAILY","PERIOD"]
[362318489,1748188809064,2491.77217386,0.00014,2]
[362318490,1748188861981,298.68,0.00013674,2]
[362318491,1748188934779,287.82,0.00013706,2]
[362318492,1748189008900,277.35,0.0001369,2]
[362318493,1748189011066,200.0,0.00024499,120]
[362318494,1748189081657,267.26,0.00013668,2]
[362318495,1748189152470,257.55,0.0001359,2]
[362318496,1748189224554,248.18,0.000136,2]
[362318512,1748189295836,239.16,0.0001359,2]
[362318514,1748189308227,751.157849,0.00013699,2]
[362318515,1748189311354,200.0,0.00024349,120]
[362318517,1748189368223,230.46,0.00013601,2]
[362318530,1748189432038,-345.69,0.0001422,2]
[362318531,1748189432047,-460.92,0.00014838,2]
[362318532,1748189432058,-576.15,0.00015456,2]
[362318533,1748189432067,-691.38,0.00016074,2]
[362318534,1748189432076,-250.0,0.00016103,2]
[362318535,1748189432086,-1200.0,0.00016509,2]
[362318536,1748189432095,-300.0,0.0001651,2]
[362318537,1748189432104,-300.0,0.0001651,2]
[362318538,1748189432113,-300.0,0.0001651,2]
[362318539,1748189432122,-8272.5576588,0.00016511,2]
[362318540,1748189432132,-748.86367624,0.00016532,2]
[362318541,1748189432144,-2300.25216696,0.00016532,2]
[362318542,1748189432154,-806.61,0.00016693,2]
[362318543,1748189432164,-1500.0,0.00017258,2]
[362318544,1748189432173,-233.4411925,0.00017311,2]
[362318554,1748189432297,-688.3988075,0.00017311,2]
[362318556,1748189432306,-259.05812458,0.000176,2]
[362318558,1748189432316,-152.0,0.00017836,2]
[362318560,1748189432326,-6239.86822135,0.000179,2]
[362318562,1748189432335,-1037.07,0.00017929,2]
[362318564,1748189432345,-420.0,0.00018041,2]
[362318566,1748189432354,-420.0,0.00018041,2]
[362318568,1748189432363,-420.0,0.00018041,2]
[362318569,1748189432372,-166.69587603,0.00018053,2]
[362318570,1748189432382,-404.0,0.00018123,2]
[362318572,1748189432392,-1064.0,0.00018131,2]
[362318574,1748189432401,-6239.86822123,0.00018141,2]
[362318576,1748189432411,-500.0,0.00018155,2]
[362318578,1748189432420,-250.3,0.00018156,2]
[362318598,1748189432596,-207.4,0.00018257,2]
[362318600,1748189432608,-5000.0,0.00018257,2]
[362318602,1748189432618,-5000.0,0.00018257,2]
[362318604,1748189432631,-5000.0,0.00018257,2]
[362318606,1748189432641,-5000.0,0.00018257,2]
[362318608,1748189432651,-5000.0,0.00018257,2]
[362318610,1748189432660,-5000.0,0.00018257,2]
[362318612,1748189432671,-2989.69355709,0.00018257,2]
[362318614,1748189432680,-160.0,0.0001829,2]
[362318616,1748189432690,-229.13142565,0.00018292,2]
[362318617,1748189432700,-423.00916439,0.00018292,2]
[362318619,1748189432711,-160.0,0.00018292,2]
[362318621,1748189432721,-1500.0,0.00018354,2]
[362318623,1748189432730,-6239.86822123,0.00018383,2]
[362318625,1748189432740,-212.55626673,0.00018407,2]
[362318627,1748189432749,-160.0,0.00018407,2]
[362318629,1748189432759,-894.64583333,0.00018407,2]
[362318631,1748189432769,-12652.24558203,0.00018407,2]
[362318633,1748189432778,-160.0,0.00018407,2]
[362318635,1748189432788,-160.0,0.00018407,2]
[362318637,1748189432798,-500.0,0.00018429,2]
[362318639,1748189432807,-1152.3,0.00018547,2]
[362318641,1748189432817,-5762.013664,0.00018601,2]
[362318643,1748189432827,-281.17886398,0.00018603,2]
[362318645,1748189432836,-500.0,0.00018623,2]
[362318647,1748189432846,-587.44627686,0.00018623,2]
[362318649,1748189432856,-562.13342468,0.00018623,2]
[362318651,1748189432866,-500.0,0.00018623,2]
[362318653,1748189432875,-6239.86822123,0.00018624,2]
[362318655,1748189432885,-500.0,0.00018703,2]
[362318657,1748189432894,-5000.0,0.00018805,2]
[362318659,1748189432904,-6239.86822123,0.00018866,2]
[362318661,1748189432913,-706.1294507,0.000189,2]
[362318663,1748189432923,-500.0,0.00018977,2]
[362318665,1748189432932,-296.60997948,0.00019005,2]
[362318667,1748189432942,-997.68226879,0.00019037,5]
[362318669,1748189432951,-810.939112,0.00019062,2]
[362318671,1748189432960,-6915.9188261,0.00019078,2]
[362318673,1748189432969,-6239.86822123,0.00019107,2]
[362318675,1748189432980,-161.888,0.00019177,2]
[362318677,1748189432991,-430.0,0.00019178,2]
[362318679,1748189433000,-443.73,0.00019178,2]
[362318681,1748189433011,-430.0,0.00019178,2]
[362318682,1748189433020,-430.0,0.00019178,2]
[362318684,1748189433030,-430.0,0.00019178,2]
[362318686,1748189433040,-430.0,0.00019178,2]
[362318688,1748189433050,-430.0,0.00019178,2]
[362318691,1748189433060,-430.0,0.00019178,2]
[362318693,1748189433070,-430.0,0.00019178,2]
[362318695,1748189433080,-151.0,0.00019178,2]
[362318697,1748189433091,-550.0769539,0.00019178,2]
[362318699,1748189433101,-452.71,0.00019178,2]
[362318701,1748189433110,-430.0,0.00019178,2]
[362318703,1748189433120,-412.43154475,0.00019178,2]
[362318705,1748189433130,-400.0,0.00019178,2]
[362318707,1748189433141,-430.0,0.00019178,2]
[362318709,1748189433152,-430.0,0.00019178,2]
[362318711,1748189433162,-762.33,0.00019178,2]
[362318713,1748189433171,-294.27599593,0.00019178,2]
[362318715,1748189433182,-226.0858518,0.00019178,2]
[362318717,1748189433191,-151.0,0.00019178,2]
[362318719,1748189433202,-858.72,0.00019178,2]
[362318721,1748189433211,-430.0,0.00019178,2]
[362318723,1748189433220,-615.39,0.00019178,2]
[362318725,1748189433231,-795.19,0.00019178,2]
[362318727,1748189433240,-151.0,0.00019178,2]
[362318729,1748189433251,-400.0,0.00019178,2]
[362318731,1748189433262,-430.0,0.00019178,2]
[362318733,1748189433272,-430.0,0.00019178,2]
[362318735,1748189433281,-430.0,0.00019178,2]
[362318737,1748189433291,-430.0,0.00019178,2]
[362318739,1748189433301,-400.0,0.00019178,2]
[362318741,1748189433311,-430.0,0.00019178,2]
[362318743,1748189433320,-430.0,0.00019178,2]
[362318745,1748189433330,-430.0,0.00019178,2]
[362318747,1748189433339,-463.39,0.00019178,2]
[362318749,1748189433349,-430.0,0.00019178,2]
[362318751,1748189433359,-430.0,0.00019178,2]
[362318753,1748189433368,-430.0,0.00019178,2]
[362318755,1748189433378,-430.0,0.00019178,2]
[362318757,1748189433388,-430.0,0.00019178,2]
[362318759,1748189433398,-430.0,0.00019178,2]
[362318761,1748189433408,-430.0,0.00019178,2]
[362318763,1748189433417,-430.0,0.00019178,2]
[362318765,1748189433427,-430.0,0.00019178,2]
[362318767,1748189433436,-430.0,0.00019178,2]
[362318769,1748189433446,-430.0,0.00019178,2]
[362318771,1748189433456,-287.12367049,0.00019178,2]
[362318773,1748189433467,-430.0,0.00019178,2]
[362318775,1748189433476,-430.0,0.00019178,2]
[362318777,1748189433486,-638.41,0.00019178,2]
[362318779,1748189433495,-430.0,0.00019178,2]
[362318781,1748189433505,-430.0,0.00019178,2]
[362318783,1748189433515,-260.82684177,0.00019178,2]
[362318785,1748189433530,-169.17315823,0.00019178,2]
[362318788,1748189433540,-430.0,0.00019178,2]
[362318789,1748189433549,-430.0,0.00019178,2]
[362318791,1748189433559,-430.0,0.00019178,2]
[362318794,1748189433569,-430.0,0.00019178,2]
[362318796,1748189433578,-430.0,0.00019178,2]
[362318798,1748189433588,-430.0,0.00019178,2]
[362318800,1748189433598,-430.0,0.00019178,2]
[362318802,1748189433607,-430.0,0.00019178,2]
[362318804,1748189433618,-430.0,0.00019178,2]
[362318805,1748189433629,-430.0,0.00019178,2]
[362318808,1748189433639,-430.0,0.00019178,2]
[362318810,1748189433649,-430.0,0.00019178,2]
[362318812,1748189433659,-430.0,0.00019178,2]
[362318814,1748189433669,-151.0,0.00019178,2]
[362318816,1748189433678,-557.80321957,0.00019178,2]
[362318818,1748189433689,-430.0,0.00019178,2]
[362318820,1748189433698,-151.0,0.00019178,2]
[362318822,1748189433708,-458.57,0.00019178,2]
[362318824,1748189433718,-456.11,0.00019178,2]
[362318826,1748189433727,-430.0,0.00019178,2]
[362318828,1748189433737,-430.0,0.00019178,2]
[362318830,1748189433746,-430.0,0.00019178,2]
[362318832,1748189433757,-430.0,0.00019178,2]
[362318834,1748189433767,-430.0,0.00019178,2]
[362318836,1748189433777,-430.0,0.00019178,2]
[362318838,1748189433788,-430.0,0.00019178,2]
[362318840,1748189433799,-151.0,0.00019178,2]
[362318842,1748189433808,-151.0,0.00019178,2]
[362318844,1748189433818,-462.81,0.00019178,2]
[362318846,1748189433828,-430.0,0.00019178,2]
[362318848,1748189433838,-250.0,0.00019178,2]
[362318850,1748189433848,-430.0,0.00019178,2]
[362318852,1748189433858,-430.0,0.00019178,2]
[362318854,1748189433868,-430.0,0.00019178,2]
[362318856,1748189433878,-430.0,0.00019178,2]
[362318857,1748189433888,-430.0,0.00019178,2]
[362318858,1748189433898,-430.0,0.00019178,2]
[362318859,1748189433908,-430.0,0.00019178,2]
[362318860,1748189433918,-297.89612576,0.00019178,2]
[362318861,1748189433928,-151.0,0.00019178,2]
[362318862,1748189433938,-430.0,0.00019178,2]
[362318863,1748189433947,-430.0,0.00019178,2]
[362318864,1748189433957,-430.0,0.00019178,2]
[362318865,1748189433967,-430.0,0.00019178,2]
[362318866,1748189433977,-574.68059444,0.00019178,2]
[362318867,1748189433987,-430.0,0.00019178,2]
[362318868,1748189433996,-430.0,0.00019178,2]
[362318869,1748189434006,-430.0,0.00019178,2]
[362318870,1748189434015,-430.0,0.00019178,2]
[362318871,1748189434025,-507.88493114,0.00019178,2]
[362318872,1748189434034,-430.0,0.00019178,2]
[362318873,1748189434043,-430.0,0.00019178,2]
[362318874,1748189434053,-430.0,0.00019178,2]
[362318875,1748189434063,-529.02,0.00019178,2]
[362318876,1748189434072,-430.0,0.00019178,2]
[362318877,1748189434082,-430.0,0.00019178,2]
[362318878,1748189434092,-430.0,0.00019178,2]
[362318879,1748189434102,-430.0,0.00019178,2]
[362318880,1748189434112,-3224.0,0.00019178,2]
[362318881,1748189434121,-430.0,0.00019178,2]
[362318882,1748189434131,-430.0,0.00019178,2]
[362318883,1748189434140,-430.0,0.00019178,2]
[362318884,1748189434150,-430.0,0.00019178,2]
[362318885,1748189434160,-586.2,0.00019178,2]
[362318886,1748189434170,-430.0,0.00019178,2]
[362318887,1748189434179,-400.0,0.00019178,2]
[362318888,1748189434188,-430.0,0.00019178,2]
[362318889,1748189434198,-430.0,0.00019178,2]
[362318890,1748189434208,-430.0,0.00019178,2]
[362318891,1748189434218,-430.0,0.00019178,2]
[362318892,1748189434228,-430.0,0.00019178,2]
[362318893,1748189434238,-430.0,0.00019178,2]
[362318894,1748189434248,-430.0,0.00019178,2]
[362318895,1748189434259,-430.0,0.00019178,2]
[362318896,1748189434268,-430.0,0.00019178,2]
[362318897,1748189434278,-151.0,0.00019178,2]
[362318898,1748189434287,-430.0,0.00019178,2]
[362318899,1748189434297,-550.6,0.00019178,2]
[362318900,1748189434307,-430.0,0.00019178,2]
[362318901,1748189434316,-430.0,0.00019178,2]
[362318902,1748189434325,-430.0,0.00019178,2]
[362318903,1748189434334,-430.0,0.00019178,2]
[362318904,1748189434343,-430.0,0.00019178,2]
[362318905,1748189434353,-151.0,0.00019178,2]
[362318906,1748189434363,-430.0,0.00019178,2]
[362318907,1748189434372,-430.0,0.00019178,2]
[362318908,1748189434382,-430.0,0.00019178,2]
[362318909,1748189434391,-430.0,0.00019178,2]
[362318910,1748189434401,-430.0,0.00019178,2]
[362318911,1748189434410,-430.0,0.00019178,2]
[362318912,1748189434419,-430.0,0.00019178,2]
[362318913,1748189434429,-822.43,0.00019178,2]
[362318914,1748189434438,-430.0,0.00019178,2]
[362318915,1748189434448,-430.0,0.00019178,2]
[362318916,1748189434458,-430.0,0.00019178,2]
[362318917,1748189434467,-430.0,0.00019178,2]
[362318918,1748189434477,-533.07,0.00019178,2]
[362318919,1748189434487,-3573.2,0.00019178,2]
[362318920,1748189434496,-430.0,0.00019178,2]
[362318921,1748189434506,-2196.97,0.00019178,2]
[362318922,1748189434516,-430.0,0.00019178,2]
[362318923,1748189434525,-540.0,0.00019178,2]
[362318924,1748189434535,-4797.23,0.00019178,2]
[362318925,1748189434544,-430.0,0.00019178,2]
[362318926,1748189434555,-430.0,0.00019178,2]
[362318927,1748189434565,-430.0,0.00019178,2]
[362318928,1748189434575,-430.0,0.00019178,2]
[362318929,1748189434585,-2356.32,0.00019178,2]
[362318930,1748189434594,-430.0,0.00019178,2]
[362318931,1748189434604,-430.0,0.00019178,2]
[362318932,1748189434614,-564.14,0.00019178,2]
[362318933,1748189434626,-232.33200696,0.00019178,2]
[362318934,1748189434635,-430.0,0.00019178,2]
[362318935,1748189434645,-430.0,0.00019178,2]
[362318936,1748189434654,-430.0,0.00019178,2]
[362318937,1748189434664,-576.88,0.00019178,2]
[362318938,1748189434673,-924.48,0.00019178,2]
[362318939,1748189434684,-430.0,0.00019178,2]
[362318940,1748189434694,-1137.28,0.00019178,2]
[362318941,1748189434704,-430.0,0.00019178,2]
[362318942,1748189434714,-310.0,0.00019178,2]
[362318943,1748189434723,-957.45,0.00019178,2]
[362318944,1748189434732,-452.46780618,0.00019178,2]
[362318945,1748189434741,-430.0,0.00019178,2]
[362318946,1748189434751,-430.0,0.00019178,2]
[362318947,1748189434762,-2209.73,0.00019178,2]
[362318948,1748189434771,-661.27,0.00019178,2]
[362318949,1748189434780,-430.0,0.00019178,2]
[362318950,1748189434790,-430.0,0.00019178,2]
[362318951,1748189434799,-189.34039913,0.00019178,2]
[362318952,1748189434809,-430.0,0.00019178,2]
[362318953,1748189434819,-347.37491403,0.00019178,2]
[362318954,1748189434829,-1118.2,0.00019178,2]
[362318955,1748189434839,-430.0,0.00019178,2]
[362318956,1748189434848,-430.0,0.00019178,2]
[362318957,1748189434857,-776.22,0.00019178,2]
[362318958,1748189434866,-370.0,0.00019178,2]
[362318959,1748189434876,-430.0,0.00019178,2]
[362318960,1748189434886,-430.0,0.00019178,2]
[362318961,1748189434896,-430.0,0.00019178,2]
[362318962,1748189434906,-430.0,0.00019178,2]
[362318963,1748189434915,-430.0,0.00019178,2]
[362318964,1748189434925,-430.0,0.00019178,2]
[362318965,1748189434934,-430.0,0.00019178,2]
[362318966,1748189434944,-614.99,0.00019178,2]
[362318967,1748189434954,-430.0,0.00019178,2]
[362318968,1748189434965,-489.19,0.00019178,2]
[362318969,1748189434975,-430.0,0.00019178,2]
[362318970,1748189434987,-440.0,0.00019178,2]
[362318971,1748189434996,-895.21,0.00019178,2]
[362318972,1748189435007,-4216.05,0.00019178,2]
[362318973,1748189435018,-335.95932143,0.00019178,2]
[362318974,1748189435028,-430.0,0.00019178,2]
[362318975,1748189435039,-423.22003313,0.00019178,2]
[362318976,1748189435048,-430.0,0.00019178,2]
[362318977,1748189435059,-430.0,0.00019178,2]
[362318978,1748189435070,-430.0,0.00019178,2]
[362318979,1748189435082,-430.0,0.00019178,2]
[362318980,1748189435092,-1280.03,0.00019178,2]
[362318981,1748189435102,-476.93,0.00019178,2]
[362318982,1748189435112,-500.0,0.00019178,2]
[362318983,1748189435122,-430.0,0.00019178,2]
[362318984,1748189435134,-430.0,0.00019178,2]
[362318985,1748189435147,-1802.3,0.00019178,2]
[362318986,1748189435159,-430.0,0.00019178,2]
[362318987,1748189435170,-430.0,0.00019178,2]
[362318988,1748189435182,-430.0,0.00019178,2]
[362318989,1748189435193,-491.5,0.00019178,2]
[362318990,1748189435204,-430.0,0.00019178,2]
[362318991,1748189435214,-848.47,0.00019178,2]
[362318992,1748189435225,-430.0,0.00019178,2]
[362318993,1748189435237,-430.0,0.00019178,2]
[362318994,1748189435246,-430.0,0.00019178,2]
[362318995,1748189435256,-430.0,0.00019178,2]
[362318996,1748189435266,-430.0,0.00019178,2]
[362318997,1748189435275,-430.0,0.00019178,2]
[362318998,1748189435285,-599.71,0.00019178,2]
[362318999,1748189435295,-430.0,0.00019178,2]
[362319000,1748189435304,-430.0,0.00019178,2]
[362319001,1748189435314,-453.22447969,0.00019178,2]
[362319002,1748189435324,-500.0,0.00019178,2]
[362319003,1748189435334,-500.0,0.00019178,2]
[362319004,1748189435345,-500.0,0.00019178,2]
[362319005,1748189435355,-626.83284923,0.00019178,2]
[362319006,1748189435365,-500.0,0.00019178,2]
[362319007,1748189435376,-500.0,0.00019178,2]
[362319008,1748189435388,-430.0,0.00019178,2]
[362319009,1748189435399,-430.0,0.00019178,2]
[362319010,1748189435409,-430.0,0.00019178,2]
[362319011,1748189435418,-430.0,0.00019178,2]
[362319012,1748189435429,-452.77394375,0.00019178,2]
[362319013,1748189435439,-430.0,0.00019178,2]
[362319014,1748189435450,-430.0,0.00019178,2]
[362319015,1748189435460,-400.0,0.00019178,2]
[362319016,1748189435470,-2179.17,0.00019178,2]
[362319017,1748189435480,-430.0,0.00019178,2]
[362319018,1748189435491,-1311.87,0.00019178,2]
[362319019,1748189435500,-430.0,0.00019178,2]
[362319020,1748189435511,-430.0,0.00019178,2]
[362319021,1748189435520,-514.65,0.00019178,2]
[362319022,1748189435530,-1070.07,0.00019178,2]
[362319023,1748189435540,-759.37,0.00019178,2]
[362319024,1748189435549,-2773.91,0.00019178,2]
[362319025,1748189435559,-688.09,0.00019178,2]
[362319026,1748189435568,-1023.16,0.00019178,2]
[362319027,1748189435578,-430.0,0.00019178,2]
[362319028,1748189435588,-500.0,0.00019178,2]
[362319029,1748189435598,-197.54617617,0.00019178,2]
[362319030,1748189435608,-430.0,0.00019178,2]
[362319031,1748189435618,-832.18,0.00019178,2]
[362319032,1748189435630,-448.33,0.00019178,2]
[362319033,1748189435640,-550.06,0.00019178,2]
[362319034,1748189435650,-1660.06,0.00019178,2]
[362319035,1748189435659,-430.0,0.00019178,2]
[362319036,1748189435669,-519.27,0.00019178,2]
[362319037,1748189435679,-3625.54,0.00019178,2]
[362319038,1748189435688,-2773.67,0.00019178,2]
[362319039,1748189435698,-556.32506872,0.00019178,2]
[362319040,1748189435707,-455.75747863,0.00019178,2]
[362319041,1748189435717,-430.0,0.00019178,2]
[362319042,1748189435727,-430.0,0.00019178,2]
[362319043,1748189435736,-6714.03,0.00019178,2]
[362319044,1748189435745,-663.33,0.00019178,2]
[362319045,1748189435755,-430.0,0.00019178,2]
[362319046,1748189435765,-1230.66,0.00019178,2]
[362319047,1748189435775,-430.0,0.00019178,2]
[362319048,1748189435784,-430.0,0.00019178,2]
[362319049,1748189435794,-430.0,0.00019178,2]
[362319050,1748189435805,-430.0,0.00019178,2]
[362319051,1748189435815,-742.35,0.00019178,2]
[362319052,1748189435824,-1001.86,0.00019178,2]
[362319053,1748189435834,-1057.16,0.00019178,2]
[362319054,1748189435977,-430.0,0.00019178,2]
[362319055,1748189436008,-430.0,0.00019178,2]
[362319056,1748189436018,-151.0,0.00019178,2]
[362319057,1748189436028,-151.0,0.00019178,2]
[362319058,1748189436038,-430.0,0.00019178,2]
[362319059,1748189436047,-430.0,0.00019178,2]
[362319060,1748189436057,-876.91,0.00019178,2]
[362319061,1748189436067,-2331.35,0.00019178,2]
[362319062,1748189436076,-276.78067423,0.00019178,2]
[362319063,1748189436086,-430.0,0.00019178,2]
[362319064,1748189436095,-430.0,0.00019178,2]
[362319065,1748189436106,-430.0,0.00019178,2]
[362319066,1748189436115,-7627.39,0.00019178,2]
[362319067,1748189436125,-480.0,0.00019178,2]
[362319068,1748189436134,-430.0,0.00019178,2]
[362319069,1748189436143,-430.0,0.00019178,2]
[362319070,1748189436153,-380.34343014,0.00019178,2]
[362319071,1748189436163,-430.0,0.00019178,2]
[362319072,1748189436174,-4402.45,0.00019178,2]
[362319073,1748189436184,-503.68,0.00019178,2]
[362319074,1748189436194,-430.0,0.00019178,2]
[362319075,1748189436204,-1366.26,0.00019178,2]
[362319076,1748189436214,-151.0,0.00019178,2]
[362319077,1748189436224,-430.0,0.00019178,2]
[362319078,1748189436233,-430.0,0.00019178,2]
[362319079,1748189436244,-430.0,0.00019178,2]
[362319080,1748189436254,-430.0,0.00019178,2]
[362319081,1748189436267,-430.0,0.00019178,2]
[362319082,1748189436276,-1156.98,0.00019178,2]
[362319083,1748189436286,-447.75,0.00019178,2]
[362319084,1748189436295,-471.14,0.00019178,2]
[362319085,1748189436305,-466.31,0.00019178,2]
[362319086,1748189436315,-430.0,0.00019178,2]
[362319087,1748189436324,-879.12,0.00019178,2]
[362319088,1748189436334,-430.0,0.00019178,2]
[362319089,1748189436343,-307.51400491,0.00019178,2]
[362319090,1748189436353,-430.0,0.00019178,2]
[362319091,1748189436362,-430.0,0.00019178,2]
[362319092,1748189436371,-630.5,0.00019178,2]
[362319093,1748189436381,-430.0,0.00019178,2]
[362319094,1748189436390,-198.097553,0.00019178,2]
[362319095,1748189436399,-500.0,0.00019251,2]
[362319096,1748189436409,-2288.11125137,0.00019329,2]
[362319097,1748189436418,-6239.86822123,0.00019348,2]
[362319098,1748189436428,-5000.0,0.00019353,2]
[362319099,1748189436437,-3000.0,0.000194,2]
[362319100,1748189436447,-166.69587601,0.000194,2]
[362319101,1748189436456,-3000.0,0.0001941,2]
[362319102,1748189436466,-151.0,0.0001941,2]
[362319103,1748189436475,-3000.0,0.0001942,2]
[362319104,1748189436485,-3000.0,0.0001943,2]
[362319105,1748189436494,-151.0,0.0001943,2]
[362319106,1748189436504,-3000.0,0.0001944,2]
[362319107,1748189436514,-1500.0,0.0001945,2]
[362319108,1748189436524,-3000.0,0.0001945,2]
[362319109,1748189436533,-10286.61514016,0.00019452,2]
[362319110,1748189436543,-2616.91071784,0.00019452,3]
[362319111,1748189436553,-151.0,0.00019452,2]
[362319112,1748189436563,-430.0,0.00019452,2]
[362319113,1748189436572,-443.73,0.00019452,2]
[362319114,1748189436582,-430.0,0.00019452,2]
[362319115,1748189436591,-151.0,0.00019452,2]
[362319116,1748189436601,-151.0,0.00019452,2]
[362319117,1748189436610,-430.0,0.00019452,2]
[362319118,1748189436621,-151.0,0.00019452,2]
[362319119,1748189436632,-151.0,0.00019452,2]
[362319120,1748189436642,-430.0,0.00019452,2]
[362319121,1748189436651,-430.0,0.00019452,2]
[362319122,1748189436662,-430.0,0.00019452,2]
[362319123,1748189436671,-391.70334469,0.00019452,2]
[362319124,1748189436681,-151.0,0.00019452,2]
[362319125,1748189436690,-151.0,0.00019452,2]
[362319126,1748189436699,-430.0,0.00019452,2]
[362319127,1748189436709,-151.0,0.00019452,2]
[362319128,1748189436718,-400.0,0.00019452,2]
[362319129,1748189436728,-430.0,0.00019452,2]
[362319130,1748189436738,-430.0,0.00019452,2]
[362319131,1748189436748,-762.33,0.00019452,2]
[362319132,1748189436757,-151.0,0.00019452,2]
[362319133,1748189436767,-151.0,0.00019452,2]
[362319134,1748189436777,-299.838574,0.00019452,2]
[362319135,1748189436786,-858.72,0.00019452,2]
[362319136,1748189436796,-217.0183802,0.00019452,2]
[362319137,1748189436805,-615.39,0.00019452,2]
[362319138,1748189436815,-795.19,0.00019452,2]
[362319139,1748189436825,-151.0,0.00019452,2]
[362319140,1748189436834,-151.0,0.00019452,2]
[362319141,1748189436844,-151.0,0.00019452,2]
[362319142,1748189436854,-430.0,0.00019452,2]
[362319143,1748189436863,-430.0,0.00019452,2]
[362319144,1748189436873,-430.0,0.00019452,2]
[362319145,1748189436882,-430.0,0.00019452,2]
[362319146,1748189436892,-430.0,0.00019452,2]
[362319147,1748189436903,-430.0,0.00019452,2]
[362319148,1748189436912,-430.0,0.00019452,2]
[362319149,1748189436922,-463.39,0.00019452,2]
[362319150,1748189436931,-430.0,0.00019452,2]
[362319151,1748189436941,-430.0,0.00019452,2]
[362319152,1748189436951,-430.0,0.00019452,2]
[362319153,1748189436961,-430.0,0.00019452,2]
[362319154,1748189436970,-430.0,0.00019452,2]
[362319155,1748189436980,-430.0,0.00019452,2]
[362319156,1748189436989,-430.0,0.00019452,2]
[362319157,1748189436999,-330.6,0.00019452,2]
[362319158,1748189437009,-430.0,0.00019452,2]
[362319159,1748189437019,-430.0,0.00019452,2]
[362319160,1748189437028,-430.0,0.00019452,2]
[362319161,1748189437037,-430.0,0.00019452,2]
[362319162,1748189437045,-430.0,0.00019452,2]
[362319163,1748189437054,-638.41,0.00019452,2]
[362319164,1748189437063,-430.0,0.00019452,2]
[362319165,1748189437073,-430.0,0.00019452,2]
[362319166,1748189437083,-430.0,0.00019452,2]
[362319167,1748189437092,-430.0,0.00019452,2]
[362319168,1748189437102,-430.0,0.00019452,2]
[362319169,1748189437112,-430.0,0.00019452,2]
[362319170,1748189437122,-474.82690167,0.00019452,2]
[362319171,1748189437133,-430.0,0.00019452,2]
[362319172,1748189437143,-430.0,0.00019452,2]
[362319173,1748189437153,-264.11833438,0.00019452,2]
[362319174,1748189437162,-430.0,0.00019452,2]
[362319175,1748189437172,-430.0,0.00019452,2]
[362319176,1748189437181,-430.0,0.00019452,2]
[362319177,1748189437191,-430.0,0.00019452,2]
[362319178,1748189437201,-430.0,0.00019452,2]
[362319179,1748189437210,-430.0,0.00019452,2]
[362319180,1748189437219,-151.0,0.00019452,2]
[362319181,1748189437229,-151.0,0.00019452,2]
[362319182,1748189437239,-151.0,0.00019452,2]
[362319183,1748189437248,-167.72435438,0.00019452,2]
[362319184,1748189437258,-151.0,0.00019452,2]
[362319185,1748189437267,-151.0,0.00019452,2]